[Event "Early-Titled-Tuesday-Blitz-January-30-2024"]
[Site "Chess.com"]
[Date "2024.01.30"]
[Round "1"]
[White "zverr1"]
[Black "artooon"]
[Result "0-1"]
[WhiteElo "2530"]
[BlackElo "2998"]
[TimeControl "180+1"]
[EndTime "8:07:25 PST"]
[Termination "artooon won by checkmate"]

1. e4 {[%clk 0:03:00.9]} 1... e5 {[%clk 0:03:00.2]} 2. Nf3 {[%clk 0:03:00.5]}
2... Nc6 {[%clk 0:03:00.9]} 3. Bc4 {[%clk 0:03:01.1]} 3... Nf6 {[%clk
0:03:01.4]} 4. Ng5 {[%clk 0:03:01.3]} 4... d5 {[%clk 0:03:01.5]} 5. exd5 {[%clk
0:03:02.2]} 5... b5 {[%clk 0:03:02.1]} 6. Bf1 {[%clk 0:02:58.6]} 6... Nd4 {[%clk
0:03:00.7]} 7. c3 {[%clk 0:02:58.2]} 7... Nxd5 {[%clk 0:03:01.2]} 8. cxd4 {[%clk
0:02:55.4]} 8... Qxg5 {[%clk 0:03:01.2]} 9. Bxb5+ {[%clk 0:02:56]} 9... Kd8
{[%clk 0:03:01.8]} 10. O-O {[%clk 0:02:53]} 10... Bb7 {[%clk 0:02:58.4]} 11. Qf3
{[%clk 0:02:51.2]} 11... Rb8 {[%clk 0:02:56.4]} 12. dxe5 {[%clk 0:02:38.6]}
12... Ne3 {[%clk 0:02:51.3]} 13. Qh3 {[%clk 0:02:38.5]} 13... Qxg2+ {[%clk
0:02:51.5]} 14. Qxg2 {[%clk 0:02:38.7]} 14... Nxg2 {[%clk 0:02:52.4]} 15. d4
{[%clk 0:02:34.8]} 15... Be7 {[%clk 0:02:52.4]} 16. f4 {[%clk 0:02:29.8]} 16...
Nh4 {[%clk 0:02:50.4]} 17. Be2 {[%clk 0:02:21.5]} 17... Bc8 {[%clk 0:02:50.7]}
18. Nc3 {[%clk 0:02:18.5]} 18... Rb6 {[%clk 0:02:51]} 19. Kf2 {[%clk 0:02:07.6]}
19... Nf5 {[%clk 0:02:51]} 20. Ne4 {[%clk 0:01:56.7]} 20... Rh6 {[%clk
0:02:47.5]} 21. Kg1 {[%clk 0:01:36.8]} 21... Bb7 {[%clk 0:02:43]} 22. Bf3 {[%clk
0:01:33.2]} 22... Rg6+ {[%clk 0:02:35.9]} 23. Kh1 {[%clk 0:01:27.2]} 23... Nh4
{[%clk 0:02:36]} 24. Nd2 {[%clk 0:00:52.6]} 24... Nxf3 {[%clk 0:02:35.7]} 25.
Nxf3 {[%clk 0:00:53.5]} 25... f5 {[%clk 0:02:35.8]} 26. Be3 {[%clk 0:00:45.5]}
26... Bd5 {[%clk 0:02:35.8]} 27. b3 {[%clk 0:00:43.7]} 27... Kd7 {[%clk
0:02:36]} 28. Rad1 {[%clk 0:00:35.3]} 28... Rg4 {[%clk 0:02:33.4]} 29. Rd2
{[%clk 0:00:35]} 29... g5 {[%clk 0:02:28.8]} 30. fxg5 {[%clk 0:00:27.7]} 30...
f4 {[%clk 0:02:29.7]} 31. Bg1 {[%clk 0:00:27.6]} 31... Rxg5 {[%clk 0:02:16]} 32.
Rg2 {[%clk 0:00:27.7]} 32... Rh5 {[%clk 0:02:14]} 33. Nd2 {[%clk 0:00:22.6]}
33... Rf8 {[%clk 0:01:53.5]} 34. Rf3 {[%clk 0:00:19.1]} 34... Bxf3 {[%clk
0:01:52]} 35. Nxf3 {[%clk 0:00:18.7]} 35... Rh3 {[%clk 0:01:52.7]} 36. Rf2
{[%clk 0:00:18.3]} 36... Rg8 {[%clk 0:01:49.3]} 37. Rf1 {[%clk 0:00:17.8]} 37...
Ke6 {[%clk 0:01:48]} 38. d5+ {[%clk 0:00:13.7]} 38... Kxd5 {[%clk 0:01:46.1]}
39. Bxa7 {[%clk 0:00:14.1]} 39... Ra8 {[%clk 0:01:43]} 40. Kg2 {[%clk
0:00:14.1]} 40... Rxf3 {[%clk 0:01:41]} 41. Rxf3 {[%clk 0:00:15]} 41... Rxa7
{[%clk 0:01:41.7]} 42. Rxf4 {[%clk 0:00:15.9]} 42... Rxa2+ {[%clk 0:01:42.4]}
43. Kg3 {[%clk 0:00:14.9]} 43... Ke6 {[%clk 0:01:40.1]} 44. Re4 {[%clk
0:00:14.1]} 44... c5 {[%clk 0:01:39.7]} 45. Re3 {[%clk 0:00:14.3]} 45... Ra3
{[%clk 0:01:39.8]} 46. Kf3 {[%clk 0:00:13.4]} 46... Ra1 {[%clk 0:01:39.3]} 47.
h3 {[%clk 0:00:13.3]} 47... Rg1 {[%clk 0:01:39.3]} 48. Ke4 {[%clk 0:00:13.8]}
48... Rg5 {[%clk 0:01:38.8]} 49. Kf4 {[%clk 0:00:13.4]} 49... Rf5+ {[%clk
0:01:39.3]} 50. Kg4 {[%clk 0:00:11.7]} 50... Rxe5 {[%clk 0:01:40.2]} 51. Rc3
{[%clk 0:00:12.1]} 51... Re4+ {[%clk 0:01:39.3]} 52. Kg3 {[%clk 0:00:11.1]}
52... Ke5 {[%clk 0:01:39.5]} 53. Rf3 {[%clk 0:00:10.6]} 53... Bh4+ {[%clk
0:01:38.3]} 54. Kg2 {[%clk 0:00:11.1]} 54... Re2+ {[%clk 0:01:38.7]} 55. Kg1
{[%clk 0:00:11.7]} 55... Rb2 {[%clk 0:01:38.6]} 56. Rf7 {[%clk 0:00:08.7]} 56...
h6 {[%clk 0:01:38.8]} 57. Rh7 {[%clk 0:00:07.2]} 57... Bg5 {[%clk 0:01:39.1]}
58. Rb7 {[%clk 0:00:07.8]} 58... Kd4 {[%clk 0:01:37.1]} 59. Rb5 {[%clk
0:00:05.4]} 59... Be3+ {[%clk 0:01:33.8]} 60. Kf1 {[%clk 0:00:05.4]} 60... Ke4
{[%clk 0:01:33.4]} 61. h4 {[%clk 0:00:05]} 61... Kf3 {[%clk 0:01:33.9]} 62. Rxc5
{[%clk 0:00:03.1]} 62... Rb1+ {[%clk 0:01:33.7]} 63. Rc1 {[%clk 0:00:01.4]}
63... Rxc1# {[%clk 0:01:34.6]} 0-1

[Event "Early-Titled-Tuesday-Blitz-January-30-2024"]
[Site "Chess.com"]
[Date "2024.01.30"]
[Round "1"]
[White "MightyGMpretender"]
[Black "Savagelittlemole"]
[Result "1-0"]
[WhiteElo "2843"]
[BlackElo "2469"]
[TimeControl "180+1"]
[EndTime "8:07:28 PST"]
[Termination "MightyGMpretender won by resignation"]

1. Nf3 {[%clk 0:02:58.9]} 1... Nf6 {[%clk 0:02:58]} 2. c4 {[%clk 0:02:58.6]}
2... g6 {[%clk 0:02:58.1]} 3. Nc3 {[%clk 0:02:55.8]} 3... Bg7 {[%clk 0:02:57.7]}
4. e4 {[%clk 0:02:55.5]} 4... d6 {[%clk 0:02:57.3]} 5. d4 {[%clk 0:02:55.1]}
5... O-O {[%clk 0:02:57.3]} 6. h3 {[%clk 0:02:55.8]} 6... Nbd7 {[%clk
0:02:53.6]} 7. Be3 {[%clk 0:02:54.2]} 7... e5 {[%clk 0:02:53.7]} 8. d5 {[%clk
0:02:54.8]} 8... Nc5 {[%clk 0:02:52.3]} 9. Nd2 {[%clk 0:02:55.2]} 9... a5 {[%clk
0:02:51.6]} 10. g4 {[%clk 0:02:55.6]} 10... c6 {[%clk 0:02:50.7]} 11. Qc2 {[%clk
0:02:45.1]} 11... Kh8 {[%clk 0:02:43.5]} 12. Be2 {[%clk 0:02:40.6]} 12... Ng8
{[%clk 0:02:37.6]} 13. h4 {[%clk 0:02:36.3]} 13... f5 {[%clk 0:02:14.4]} 14.
gxf5 {[%clk 0:02:35.4]} 14... gxf5 {[%clk 0:02:14]} 15. O-O-O {[%clk 0:02:35]}
15... Nf6 {[%clk 0:02:06.1]} 16. h5 {[%clk 0:02:31]} 16... Rg8 {[%clk
0:02:00.5]} 17. exf5 {[%clk 0:02:22.7]} 17... cxd5 {[%clk 0:01:53.2]} 18. cxd5
{[%clk 0:02:19.5]} 18... Qd7 {[%clk 0:01:38.1]} 19. Bg5 {[%clk 0:02:01.6]} 19...
h6 {[%clk 0:01:29.3]} 20. Bxf6 {[%clk 0:01:31.7]} 20... Bxf6 {[%clk 0:01:30.2]}
21. Nde4 {[%clk 0:01:27.6]} 21... Bg5+ {[%clk 0:01:22.2]} 22. Kb1 {[%clk
0:01:15.4]} 22... Nxe4 {[%clk 0:01:02.8]} 23. Nxe4 {[%clk 0:01:15.2]} 23... Qd8
{[%clk 0:01:03]} 24. Bg4 {[%clk 0:01:10.5]} 24... Be7 {[%clk 0:00:47.2]} 25. f3
{[%clk 0:01:10.5]} 25... Rf8 {[%clk 0:00:36.8]} 26. Rhg1 {[%clk 0:01:04.7]}
26... Bxf5 {[%clk 0:00:29.4]} 27. Bxf5 {[%clk 0:01:04.2]} 27... Rxf5 {[%clk
0:00:30.3]} 28. Nxd6 {[%clk 0:01:04.8]} 28... Rf4 {[%clk 0:00:20.5]} 29. Nf5
{[%clk 0:00:54.4]} 29... Bg5 {[%clk 0:00:19.6]} 30. Ng3 {[%clk 0:00:44.4]} 30...
Rc8 {[%clk 0:00:18.7]} 31. Qd3 {[%clk 0:00:44.1]} 31... Rd4 {[%clk 0:00:16.2]}
32. Qg6 {[%clk 0:00:42.9]} 32... Rxd1+ {[%clk 0:00:16.1]} 33. Rxd1 {[%clk
0:00:42.7]} 33... Qc7 {[%clk 0:00:14.7]} 34. a3 {[%clk 0:00:41.6]} 34... a4
{[%clk 0:00:14.4]} 35. d6 {[%clk 0:00:39.4]} 35... Qd7 {[%clk 0:00:14.2]} 36.
Qf5 {[%clk 0:00:35.8]} 36... Qd8 {[%clk 0:00:12.1]} 37. d7 {[%clk 0:00:32.6]}
37... Rc6 {[%clk 0:00:12.1]} 38. Qxe5+ {[%clk 0:00:32.2]} 38... Bf6 {[%clk
0:00:11.7]} 39. Qe8+ {[%clk 0:00:32.5]} 39... Kg7 {[%clk 0:00:11.4]} 40. Qg6+
{[%clk 0:00:32.9]} 40... Kf8 {[%clk 0:00:11.4]} 41. Qxh6+ {[%clk 0:00:32.1]}
41... Ke7 {[%clk 0:00:11.3]} 42. Nf5+ {[%clk 0:00:31.7]} 42... Ke6 {[%clk
0:00:11.4]} 43. Nd4+ {[%clk 0:00:30.7]} 43... Kd6 {[%clk 0:00:09.4]} 44. Qxf6+
{[%clk 0:00:23.2]} 44... Qxf6 {[%clk 0:00:08.9]} 45. d8=Q+ {[%clk 0:00:24.1]}
45... Qxd8 {[%clk 0:00:08.7]} 46. Nxc6+ {[%clk 0:00:24.8]} 46... Kxc6 {[%clk
0:00:08]} 47. Rxd8 {[%clk 0:00:25.7]} 1-0

[Event "Early-Titled-Tuesday-Blitz-January-30-2024"]
[Site "Chess.com"]
[Date "2024.01.30"]
[Round "1"]
[White "DeArron_Fox"]
[Black "RobertoJBM"]
[Result "0-1"]
[WhiteElo "2463"]
[BlackElo "2822"]
[TimeControl "180+1"]
[EndTime "8:07:28 PST"]
[Termination "RobertoJBM won on time"]

1. d4 {[%clk 0:03:00.9]} 1... d5 {[%clk 0:02:58.9]} 2. c4 {[%clk 0:03:00]} 2...
c6 {[%clk 0:02:57.8]} 3. Nc3 {[%clk 0:02:59.7]} 3... Nf6 {[%clk 0:02:57.3]} 4.
e3 {[%clk 0:02:59]} 4... a6 {[%clk 0:02:54.1]} 5. Nf3 {[%clk 0:02:51.6]} 5...
Bf5 {[%clk 0:02:53.3]} 6. Be2 {[%clk 0:02:14.4]} 6... h6 {[%clk 0:02:47.9]} 7.
O-O {[%clk 0:02:09.5]} 7... e6 {[%clk 0:02:47.7]} 8. a4 {[%clk 0:01:52.7]} 8...
a5 {[%clk 0:02:36.9]} 9. Qb3 {[%clk 0:01:46.8]} 9... Ra7 {[%clk 0:02:35.7]} 10.
Ne5 {[%clk 0:01:29.2]} 10... Be7 {[%clk 0:02:30.1]} 11. Bd2 {[%clk 0:01:27.4]}
11... O-O {[%clk 0:02:28.6]} 12. f4 {[%clk 0:01:13.1]} 12... Ne4 {[%clk
0:02:25.7]} 13. Nxe4 {[%clk 0:01:08.7]} 13... Bxe4 {[%clk 0:02:25.5]} 14. Bd3
{[%clk 0:01:05.1]} 14... Bxd3 {[%clk 0:02:23.4]} 15. Qxd3 {[%clk 0:01:06]} 15...
Nd7 {[%clk 0:02:21.6]} 16. Qe2 {[%clk 0:00:43.3]} 16... Nf6 {[%clk 0:02:17.2]}
17. Rf3 {[%clk 0:00:30.4]} 17... Ne4 {[%clk 0:02:13.1]} 18. Raf1 {[%clk
0:00:28.4]} 18... f6 {[%clk 0:02:01.7]} 19. Ng6 {[%clk 0:00:14.8]} 19... Rf7
{[%clk 0:02:01.3]} 20. Be1 {[%clk 0:00:10.8]} 20... f5 {[%clk 0:02:00.3]} 21.
Ne5 {[%clk 0:00:10]} 21... Rf8 {[%clk 0:02:00.3]} 22. g4 {[%clk 0:00:09.7]}
22... Bd6 {[%clk 0:01:38.9]} 23. Kh1 {[%clk 0:00:09.4]} 23... Qe8 {[%clk
0:01:26.7]} 24. Rg1 {[%clk 0:00:06.3]} 24... Bxe5 {[%clk 0:01:23.5]} 25. fxe5
{[%clk 0:00:07.2]} 25... b6 {[%clk 0:01:15.7]} 26. gxf5 {[%clk 0:00:03.3]} 26...
Rxf5 {[%clk 0:01:11.7]} 27. Rxf5 {[%clk 0:00:03.9]} 27... exf5 {[%clk
0:01:12.6]} 28. cxd5 {[%clk 0:00:04.7]} 28... cxd5 {[%clk 0:01:12.2]} 29. Bh4
{[%clk 0:00:04.5]} 29... Kh7 {[%clk 0:01:09.1]} 30. Qf3 {[%clk 0:00:02.3]} 30...
Qe6 {[%clk 0:01:08.2]} 31. Rf1 {[%clk 0:00:02.7]} 31... Rf7 {[%clk 0:00:44.8]}
32. Be1 {[%clk 0:00:03.2]} 32... g5 {[%clk 0:00:42.8]} 33. b4 {[%clk 0:00:03.2]}
33... axb4 {[%clk 0:00:42.1]} 34. Bxb4 {[%clk 0:00:04.1]} 34... Kg6 {[%clk
0:00:41]} 35. Qe2 {[%clk 0:00:02.7]} 35... Rc7 {[%clk 0:00:39.4]} 36. a5 {[%clk
0:00:02]} 36... bxa5 {[%clk 0:00:38.7]} 37. Bxa5 {[%clk 0:00:02.9]} 37... Rc4
{[%clk 0:00:37.6]} 38. Rg1 {[%clk 0:00:01.9]} 38... Qc6 {[%clk 0:00:30.4]} 39.
Bb4 {[%clk 0:00:02.4]} 39... Rxb4 {[%clk 0:00:28.4]} 40. h4 {[%clk 0:00:01.7]}
40... Rb7 {[%clk 0:00:20.6]} 41. hxg5 {[%clk 0:00:01.7]} 41... hxg5 {[%clk
0:00:21.5]} 42. Kg2 {[%clk 0:00:02.1]} 42... Rh7 {[%clk 0:00:21.3]} 0-1

[Event "Early-Titled-Tuesday-Blitz-January-30-2024"]
[Site "Chess.com"]
[Date "2024.01.30"]
[Round "1"]
[White "Lennis93"]
[Black "wild3000"]
[Result "1-0"]
[WhiteElo "2733"]
[BlackElo "2402"]
[TimeControl "180+1"]
[EndTime "8:07:29 PST"]
[Termination "Lennis93 won by checkmate"]

1. d4 {[%clk 0:03:00.9]} 1... Nf6 {[%clk 0:02:55.5]} 2. c4 {[%clk 0:03:00.8]}
2... e6 {[%clk 0:02:55.5]} 3. Nf3 {[%clk 0:03:01.4]} 3... d5 {[%clk 0:02:54.7]}
4. g3 {[%clk 0:03:01.6]} 4... Bb4+ {[%clk 0:02:54]} 5. Bd2 {[%clk 0:02:59.8]}
5... a5 {[%clk 0:02:53.5]} 6. Qc2 {[%clk 0:02:56.8]} 6... O-O {[%clk 0:02:52.7]}
7. Bg2 {[%clk 0:02:56.4]} 7... Nc6 {[%clk 0:02:52.6]} 8. O-O {[%clk 0:02:55.9]}
8... dxc4 {[%clk 0:02:40.8]} 9. Qxc4 {[%clk 0:02:42.3]} 9... Re8 {[%clk
0:02:19.4]} 10. a3 {[%clk 0:02:28.3]} 10... Bxd2 {[%clk 0:02:16.9]} 11. Nbxd2
{[%clk 0:02:28.2]} 11... a4 {[%clk 0:02:03.8]} 12. Rfd1 {[%clk 0:02:25.5]} 12...
Bd7 {[%clk 0:02:02.1]} 13. Rac1 {[%clk 0:02:24.3]} 13... Na5 {[%clk 0:01:58.1]}
14. Qxc7 {[%clk 0:02:21.8]} 14... Qxc7 {[%clk 0:01:58.1]} 15. Rxc7 {[%clk
0:02:21.2]} 15... Bc6 {[%clk 0:01:58.1]} 16. Ne5 {[%clk 0:02:21.1]} 16... Bxg2
{[%clk 0:01:55.6]} 17. Kxg2 {[%clk 0:02:20.1]} 17... Rf8 {[%clk 0:01:33.9]} 18.
Rdc1 {[%clk 0:01:59]} 18... Nd5 {[%clk 0:01:29.6]} 19. R7c5 {[%clk 0:01:40.8]}
19... Rfd8 {[%clk 0:01:18.7]} 20. e3 {[%clk 0:01:36.5]} 20... h5 {[%clk
0:01:17.2]} 21. h4 {[%clk 0:01:35.6]} 21... g6 {[%clk 0:01:16.5]} 22. Rb5 {[%clk
0:01:25.1]} 22... Kf8 {[%clk 0:01:01.8]} 23. Ne4 {[%clk 0:01:05.1]} 23... Nb3
{[%clk 0:00:57.8]} 24. Rc4 {[%clk 0:00:50.9]} 24... b6 {[%clk 0:00:51.5]} 25.
Ng5 {[%clk 0:00:42]} 25... Ra7 {[%clk 0:00:44.7]} 26. Nexf7 {[%clk 0:00:14.3]}
26... Rxf7 {[%clk 0:00:43.8]} 27. Nxe6+ {[%clk 0:00:14.4]} 27... Ke7 {[%clk
0:00:33.9]} 28. Nxd8 {[%clk 0:00:15.2]} 28... Nxe3+ {[%clk 0:00:25.8]} 29. fxe3
{[%clk 0:00:14.5]} 29... Kxd8 {[%clk 0:00:26.7]} 30. Rxa4 {[%clk 0:00:14.3]}
30... Nd2 {[%clk 0:00:17.5]} 31. Ra8+ {[%clk 0:00:12.7]} 31... Kc7 {[%clk
0:00:17.4]} 32. Ra7+ {[%clk 0:00:12.9]} 32... Kc6 {[%clk 0:00:18.3]} 33. Rxb6+
{[%clk 0:00:12.3]} 33... Kxb6 {[%clk 0:00:18.5]} 34. Rxf7 {[%clk 0:00:12.7]}
34... Nc4 {[%clk 0:00:18.6]} 35. Kf3 {[%clk 0:00:12.9]} 35... Nxb2 {[%clk
0:00:18.5]} 36. Rf6+ {[%clk 0:00:13]} 36... Kb5 {[%clk 0:00:18.6]} 37. Rxg6
{[%clk 0:00:13.9]} 37... Nc4 {[%clk 0:00:19]} 38. Rg5+ {[%clk 0:00:14.8]} 38...
Ka4 {[%clk 0:00:19]} 39. Rxh5 {[%clk 0:00:15.7]} 39... Nxa3 {[%clk 0:00:19.4]}
40. g4 {[%clk 0:00:16]} 40... Nc4 {[%clk 0:00:20.3]} 41. g5 {[%clk 0:00:16.5]}
41... Nd2+ {[%clk 0:00:20.8]} 42. Kf4 {[%clk 0:00:16.5]} 42... Kb4 {[%clk
0:00:20.7]} 43. g6 {[%clk 0:00:16.6]} 43... Nc4 {[%clk 0:00:19.6]} 44. g7 {[%clk
0:00:16.4]} 44... Nd6 {[%clk 0:00:20.5]} 45. g8=Q {[%clk 0:00:16.3]} 45... Kc3
{[%clk 0:00:21.2]} 46. Rc5+ {[%clk 0:00:16]} 46... Kd2 {[%clk 0:00:21]} 47. Qa2+
{[%clk 0:00:16.4]} 47... Kd3 {[%clk 0:00:19.6]} 48. Qc2# {[%clk 0:00:16.9]} 1-0

[Event "Early-Titled-Tuesday-Blitz-January-30-2024"]
[Site "Chess.com"]
[Date "2024.01.30"]
[Round "1"]
[White "RantomOpening"]
[Black "GMBenjaminBok"]
[Result "0-1"]
[WhiteElo "2515"]
[BlackElo "2952"]
[TimeControl "180+1"]
[EndTime "8:07:30 PST"]
[Termination "GMBenjaminBok won by checkmate"]

1. c4 {[%clk 0:02:59]} 1... Nf6 {[%clk 0:02:58.3]} 2. Nf3 {[%clk 0:02:57.4]}
2... e6 {[%clk 0:02:54.7]} 3. Nc3 {[%clk 0:02:57.4]} 3... d5 {[%clk 0:02:54.6]}
4. e3 {[%clk 0:02:57.8]} 4... Bd6 {[%clk 0:02:51.3]} 5. b3 {[%clk 0:02:54.8]}
5... O-O {[%clk 0:02:50.7]} 6. Bb2 {[%clk 0:02:51]} 6... c6 {[%clk 0:02:49.7]}
7. d4 {[%clk 0:02:50.9]} 7... Nbd7 {[%clk 0:02:48.4]} 8. Be2 {[%clk 0:02:50.9]}
8... b6 {[%clk 0:02:46.9]} 9. O-O {[%clk 0:02:51.2]} 9... Bb7 {[%clk 0:02:47.6]}
10. Qc2 {[%clk 0:02:51.1]} 10... Qe7 {[%clk 0:02:47.1]} 11. Rad1 {[%clk
0:02:48.1]} 11... Rfd8 {[%clk 0:02:47]} 12. Rfe1 {[%clk 0:02:47.9]} 12... Bb4
{[%clk 0:02:47.3]} 13. Rf1 {[%clk 0:02:41.9]} 13... Rac8 {[%clk 0:02:39.5]} 14.
Ne5 {[%clk 0:02:11.3]} 14... Nxe5 {[%clk 0:02:22.5]} 15. dxe5 {[%clk 0:02:12.2]}
15... Nd7 {[%clk 0:02:22.8]} 16. f4 {[%clk 0:02:11.5]} 16... b5 {[%clk
0:02:20.5]} 17. Kh1 {[%clk 0:01:38.8]} 17... bxc4 {[%clk 0:02:17.5]} 18. bxc4
{[%clk 0:01:38.7]} 18... Nb6 {[%clk 0:02:16]} 19. Qb3 {[%clk 0:01:31]} 19...
Bxc3 {[%clk 0:01:41]} 20. Bxc3 {[%clk 0:01:28.5]} 20... Ba6 {[%clk 0:01:41.3]}
21. Qb4 {[%clk 0:00:46.3]} 21... c5 {[%clk 0:01:32.2]} 22. Qa5 {[%clk
0:00:45.7]} 22... Bxc4 {[%clk 0:01:32.6]} 23. Rfe1 {[%clk 0:00:42.6]} 23... Bxe2
{[%clk 0:01:29.7]} 24. Rxe2 {[%clk 0:00:43.5]} 24... h6 {[%clk 0:01:24.5]} 25.
Qa6 {[%clk 0:00:42.2]} 25... Rb8 {[%clk 0:01:12.3]} 26. Ba5 {[%clk 0:00:40.9]}
26... Qb7 {[%clk 0:01:11.3]} 27. Qxb7 {[%clk 0:00:40.9]} 27... Rxb7 {[%clk
0:01:12.2]} 28. Rb1 {[%clk 0:00:41.3]} 28... Rdb8 {[%clk 0:01:02.8]} 29. Reb2
{[%clk 0:00:39.1]} 29... Kf8 {[%clk 0:01:02.5]} 30. Rb5 {[%clk 0:00:35.6]} 30...
c4 {[%clk 0:00:46]} 31. Bb4+ {[%clk 0:00:35.9]} 31... Ke8 {[%clk 0:00:44.4]} 32.
Bd6 {[%clk 0:00:36.8]} 32... Rc8 {[%clk 0:00:42.4]} 33. a4 {[%clk 0:00:37.5]}
33... Rd7 {[%clk 0:00:20.6]} 34. a5 {[%clk 0:00:37.4]} 34... Na4 {[%clk
0:00:18.4]} 35. Rb8 {[%clk 0:00:32.6]} 35... Rdd8 {[%clk 0:00:05.4]} 36. R8b7
{[%clk 0:00:32.2]} 36... Rd7 {[%clk 0:00:05.7]} 37. Rb8 {[%clk 0:00:32.4]} 37...
Rxb8 {[%clk 0:00:05.3]} 38. Rxb8+ {[%clk 0:00:32.3]} 38... Rd8 {[%clk 0:00:06]}
39. Rb7 {[%clk 0:00:33.2]} 39... Rc8 {[%clk 0:00:06.4]} 40. Re7+ {[%clk
0:00:32.7]} 40... Kd8 {[%clk 0:00:06.9]} 41. Rxf7 {[%clk 0:00:33.1]} 41... c3
{[%clk 0:00:07.5]} 42. Rf8+ {[%clk 0:00:32.3]} 42... Kd7 {[%clk 0:00:08.1]} 43.
Rf7+ {[%clk 0:00:32.5]} 43... Kc6 {[%clk 0:00:08.1]} 44. Ba3 {[%clk 0:00:32.2]}
44... c2 {[%clk 0:00:08.1]} 45. f5 {[%clk 0:00:32.3]} 45... Kb5 {[%clk
0:00:08.3]} 46. fxe6 {[%clk 0:00:31.4]} 46... c1=Q+ {[%clk 0:00:08.1]} 47. Rf1
{[%clk 0:00:30.6]} 47... Qxf1# {[%clk 0:00:07.9]} 0-1

[Event "Early-Titled-Tuesday-Blitz-January-30-2024"]
[Site "Chess.com"]
[Date "2024.01.30"]
[Round "1"]
[White "Byniolus"]
[Black "TheoSlade"]
[Result "1-0"]
[WhiteElo "2820"]
[BlackElo "2463"]
[TimeControl "180+1"]
[EndTime "8:07:31 PST"]
[Termination "Byniolus won on time"]

1. d4 {[%clk 0:03:00.9]} 1... d5 {[%clk 0:02:59.9]} 2. Nf3 {[%clk 0:03:00.6]}
2... e6 {[%clk 0:03:00.1]} 3. Bf4 {[%clk 0:03:01]} 3... c5 {[%clk 0:02:58.8]} 4.
c3 {[%clk 0:03:01.1]} 4... Nc6 {[%clk 0:02:57.9]} 5. e3 {[%clk 0:03:01.5]} 5...
Nf6 {[%clk 0:02:51.5]} 6. Nbd2 {[%clk 0:03:01.2]} 6... Bd6 {[%clk 0:02:46.4]} 7.
Bg3 {[%clk 0:03:01.4]} 7... O-O {[%clk 0:02:45.8]} 8. Bd3 {[%clk 0:03:01.6]}
8... b6 {[%clk 0:02:46.5]} 9. Ne5 {[%clk 0:03:01.4]} 9... Ne7 {[%clk 0:02:43.7]}
10. f4 {[%clk 0:02:56.5]} 10... Nf5 {[%clk 0:02:42.9]} 11. Bf2 {[%clk
0:02:55.9]} 11... Be7 {[%clk 0:02:37.9]} 12. Nc6 {[%clk 0:02:42.6]} 12... Qc7
{[%clk 0:02:37.8]} 13. Nxe7+ {[%clk 0:02:42.7]} 13... Qxe7 {[%clk 0:02:38.4]}
14. g4 {[%clk 0:02:37.4]} 14... Nd6 {[%clk 0:02:38.8]} 15. Bh4 {[%clk
0:02:37.4]} 15... Bb7 {[%clk 0:02:31.4]} 16. Qc2 {[%clk 0:02:23.2]} 16... g6
{[%clk 0:02:15.5]} 17. O-O-O {[%clk 0:01:58.1]} 17... Kg7 {[%clk 0:02:05.5]} 18.
f5 {[%clk 0:01:49.3]} 18... exf5 {[%clk 0:01:42.1]} 19. gxf5 {[%clk 0:01:50.2]}
19... Qxe3 {[%clk 0:01:41.8]} 20. Rhg1 {[%clk 0:01:33.8]} 20... cxd4 {[%clk
0:01:31.3]} 21. fxg6 {[%clk 0:01:10.3]} 21... fxg6 {[%clk 0:00:59.4]} 22. Bxg6
{[%clk 0:01:11.2]} 22... dxc3 {[%clk 0:00:52.7]} 23. bxc3 {[%clk 0:01:07.3]}
23... Kh8 {[%clk 0:00:29.7]} 24. Bg5 {[%clk 0:00:16.8]} 24... Qc5 {[%clk
0:00:28.1]} 25. Bd3 {[%clk 0:00:04.5]} 25... Rac8 {[%clk 0:00:20.6]} 26. Kb2
{[%clk 0:00:04.9]} 26... Nc4+ {[%clk 0:00:19.1]} 27. Bxc4 {[%clk 0:00:03.9]}
27... dxc4 {[%clk 0:00:20]} 28. Rdf1 {[%clk 0:00:03.1]} 28... Nd7 {[%clk
0:00:14.3]} 29. Bh6 {[%clk 0:00:03.5]} 29... Rg8 {[%clk 0:00:12.4]} 30. Rxg8+
{[%clk 0:00:02.7]} 30... Rxg8 {[%clk 0:00:13]} 31. Ne4 {[%clk 0:00:03.3]} 31...
Qh5 {[%clk 0:00:07.5]} 32. Be3 {[%clk 0:00:03]} 32... Qg6 {[%clk 0:00:04.9]} 33.
Bd4+ {[%clk 0:00:03.9]} 33... Rg7 {[%clk 0:00:04.1]} 34. Re1 {[%clk 0:00:03.2]}
34... Bxe4 {[%clk 0:00:03]} 35. Rxe4 {[%clk 0:00:03.3]} 35... Qg4 {[%clk
0:00:02.2]} 36. Rxg4 {[%clk 0:00:02]} 1-0

[Event "Early-Titled-Tuesday-Blitz-January-30-2024"]
[Site "Chess.com"]
[Date "2024.01.30"]
[Round "1"]
[White "Luklei18"]
[Black "Agibileg"]
[Result "0-1"]
[WhiteElo "2411"]
[BlackElo "2762"]
[TimeControl "180+1"]
[EndTime "8:07:31 PST"]
[Termination "Agibileg won on time"]

1. d4 {[%clk 0:03:00.9]} 1... Nf6 {[%clk 0:02:59.5]} 2. Nc3 {[%clk 0:03:01.4]}
2... d5 {[%clk 0:02:54.5]} 3. Bf4 {[%clk 0:03:01.6]} 3... g6 {[%clk 0:02:51.6]}
4. e3 {[%clk 0:03:01.2]} 4... Bg7 {[%clk 0:02:51.7]} 5. h4 {[%clk 0:03:01.7]}
5... h5 {[%clk 0:02:51.2]} 6. Nf3 {[%clk 0:03:02]} 6... O-O {[%clk 0:02:48.1]}
7. Qd2 {[%clk 0:02:58]} 7... c5 {[%clk 0:02:47.8]} 8. Ne5 {[%clk 0:02:55.1]}
8... Bf5 {[%clk 0:02:41.5]} 9. O-O-O {[%clk 0:02:38.5]} 9... Nc6 {[%clk
0:02:38.4]} 10. Bb5 {[%clk 0:02:29.7]} 10... Rc8 {[%clk 0:02:34.3]} 11. Bxc6
{[%clk 0:02:22.4]} 11... bxc6 {[%clk 0:02:33.9]} 12. dxc5 {[%clk 0:02:22.9]}
12... Qa5 {[%clk 0:02:32.5]} 13. Nd3 {[%clk 0:02:15.4]} 13... Nd7 {[%clk
0:02:21.3]} 14. Kb1 {[%clk 0:02:01]} 14... e5 {[%clk 0:02:10.4]} 15. Nxd5 {[%clk
0:01:11.8]} 15... Qxd2 {[%clk 0:02:08.8]} 16. Ne7+ {[%clk 0:01:11.6]} 16... Kh7
{[%clk 0:02:05.4]} 17. Rxd2 {[%clk 0:01:12]} 17... exf4 {[%clk 0:02:03.6]} 18.
Nxc8 {[%clk 0:01:12]} 18... fxe3 {[%clk 0:01:57.6]} 19. fxe3 {[%clk 0:01:01]}
19... Rxc8 {[%clk 0:01:57.7]} 20. Re1 {[%clk 0:00:43.9]} 20... Nf6 {[%clk
0:01:55.4]} 21. Nf2 {[%clk 0:00:39.9]} 21... Re8 {[%clk 0:01:36.2]} 22. Rd6
{[%clk 0:00:20.6]} 22... Ne4 {[%clk 0:01:25.9]} 23. Nxe4 {[%clk 0:00:20.8]}
23... Bxe4 {[%clk 0:01:26.8]} 24. Rd7 {[%clk 0:00:21.4]} 24... a5 {[%clk
0:01:20]} 25. Rxf7 {[%clk 0:00:19.5]} 25... Rb8 {[%clk 0:01:18.2]} 26. b3 {[%clk
0:00:17]} 26... a4 {[%clk 0:01:18.6]} 27. Rd1 {[%clk 0:00:16.8]} 27... axb3
{[%clk 0:01:17.2]} 28. axb3 {[%clk 0:00:16.7]} 28... Ra8 {[%clk 0:01:07.3]} 29.
Kc1 {[%clk 0:00:11.9]} 29... Kh6 {[%clk 0:01:03.3]} 30. Rdd7 {[%clk 0:00:11.1]}
30... Rg8 {[%clk 0:00:51.7]} 31. g3 {[%clk 0:00:09.9]} 31... g5 {[%clk
0:00:26.8]} 32. Rd6+ {[%clk 0:00:07.9]} 32... Kh7 {[%clk 0:00:26.6]} 33. hxg5
{[%clk 0:00:06.9]} 33... Kh8 {[%clk 0:00:26]} 34. g6 {[%clk 0:00:06.6]} 34...
Ra8 {[%clk 0:00:24.2]} 35. Rdd7 {[%clk 0:00:05.1]} 35... Bc3 {[%clk 0:00:22.7]}
36. Rh7+ {[%clk 0:00:04.2]} 36... Kg8 {[%clk 0:00:22.9]} 37. Rdg7+ {[%clk
0:00:04.7]} 37... Bxg7 {[%clk 0:00:22.5]} 38. Rxh5 {[%clk 0:00:01.4]} 38... Bc3
{[%clk 0:00:22.3]} 39. Kd1 {[%clk 0:00:01.8]} 39... Bf3+ {[%clk 0:00:22.4]} 0-1